Cogmind - Beta 14 @@@ ROGUE MODE // 2024.11.18 @ 18:35:54 Player: Zeldest Result: Destroyed by G-34 Mercenary with Small Laser Performance ------------- Evolutions (1) 500 Regions Visited (3) 600 Robots Destroyed (5) 25 Value Destroyed (98) 98 Prototype IDs (0) 0 Alien Tech Used (0) 0 Bonus (0) 0 TOTAL SCORE: 1223 Bonus ------- None Cogmind --------- Core Integrity 0/400 Matter 300/300 Energy 100/100 System Corruption 4% Temperature Warm (121) Movement Core (50) Location -9/Materials Parts ------- > --- POWER (1) -------- (None) > --- PROPULSION (3) --- (None) > --- UTILITY (3) ------ Power Shielding > --- WEAPON (2) ------- (None) > --- INVENTORY (5) ---- Ion Engine Huge Storage Unit Huge Storage Unit Small Laser Peak State ------------ > --- POWER ------------ Ion Engine > --- PROPULSION ------- (None) > --- UTILITY ---------- Power Shielding > --- WEAPON ----------- Enhanced Flamer > --- INVENTORY -------- Huge Storage Unit Huge Storage Unit Small Laser [Rating: 5] Favorites ----------- Power Ion Engine Engine Ion Engine Propulsion None Utility Huge Storage Unit Storage Huge Storage Unit Protection Power Shielding Weapon Light Assault Rifle Energy Gun Medium Laser Ballistic Gun Light Assault Rifle Special Weapon Enhanced Flamer Build | -11 -10 -10 -9 ------- Run | Yrd Mat Min Mat Slots Evolved 2 | . . . 2 Power . | . . . . Propulsion 1 | . . . 1 Utility 1 | . . . 1 Weapon . | . . . . Parts Attached 9 | 2 3 2 2 Power 3 | 1 1 . 1 Engine 3 | 1 1 . 1 Core . | . . . . Reactor . | . . . . Propulsion . | . . . . Treads . | . . . . Leg . | . . . . Wheel . | . . . . Hover . | . . . . Flight . | . . . . Utility 2 | . 1 1 . Device . | . . . . Storage 1 | . 1 . . Processor . | . . . . Hackware . | . . . . Protection 1 | . . 1 . Artifact . | . . . . Weapon 4 | 1 1 1 1 Energy Gun 2 | . 1 . 1 Energy Cannon . | . . . . Ballistic Gun 1 | 1 . . . Ballistic Cannon . | . . . . Launcher . | . . . . Special Weapon 1 | . . 1 . Impact Weapon . | . . . . Slashing Weapon . | . . . . Piercing Weapon . | . . . . Special Melee Weapon . | . . . . Unidentified Prototypes . | . . . . Parts Lost 3 | . 1 . 2 Power . | . . . . Propulsion . | . . . . Utility . | . . . . Weapon 3 | . 1 . 2 Highest Loss Streak 2 | . 1 . 2 To Critical Strikes . | . . . . Average Slot Usage (%) 34 | . 40 4 28 Engine 9 | . 13 . . Storage 9 | . 13 . . Protection 2 | . . 1 11 Energy Gun 2 | . 1 . 8 Ballistic Gun 8 | . 12 . . Special Weapon 2 | . . 3 9 Peak Build Rating 5 | 2 3 4 5 Average Rating 2 | 1 2 . 4 On Entrance 1 | . 2 . 4 Naked Turns 113 | . 16 97 . Heaviest Build 86 | 6 86 3 5 Greatest Support 3 | 3 3 3 3 Greatest Overweight (x) 28 | 1 28 . 1 Average Overweight (x) 2 | . 12 . . Largest Inventory Capacity 25 | 5 25 5 5 Average Capacity 17 | 5 24 5 5 Most Carried 4 | . 3 4 4 Average Carried 1 | . . 3 3 Final Capacity 5 | 5 5 5 5 Final Carried 4 | . 3 4 4 Class Distribution -------------------- 100% | Mutant Dominant Class ---------------- Mutant | -10/Materials Mutant | -10/Mines Mutant | -9/Materials Resources | -11 -10 -10 -9 ----------- Run | Yrd Mat Min Mat Matter Collected 272 | 208 44 10 10 Remotely . | . . . . Salvage Created 112 | . 90 . 22 Parts 8 | . 7 . 1 Haulers Intercepted . | . . . . Recyclers Shooed . | . . . . Parts Field Recycled . | . . . . Retrieved Matter . | . . . . Parts Self-Destructed . | . . . . Prevented . | . . . . Kills | -11 -10 -10 -9 ------- Run | Yrd Mat Min Mat Combat Hostiles Destroyed 5 | . 4 . 1 Guns 5 | . 4 . 1 Classes Destroyed 2 | . 2 . . Swarmer 3 | . 3 . . Grunt 2 | . 1 . 1 Best Kill Streak 3 | . 3 . 1 Combat Bots Only 3 | . 3 . 1 Max Kills in Single Turn 1 | . 1 . 1 Gunslinging . | . . . . Exploded . | . . . . Melee . | . . . . Uniques/NPCs Destroyed . | . . . . Combat | -11 -10 -10 -9 -------- Run | Yrd Mat Min Mat Hostile Shots Fired 90 | . 50 1 39 Missed 14 | . 9 1 4 Damage Taken 916 | . 382 . 534 Core 532 | . 132 . 400 Absorbed by Shields . | . . . . Core Remaining (%) 73 | 100 . 47 . Volleys Fired 33 | . 25 . 8 Largest 2 | . 1 . 2 Hottest 130 | . 40 . 130 Shots Fired 38 | . 25 . 13 Gun 33 | . 25 . 8 Cannon . | . . . . Launcher . | . . . . Special 5 | . . . 5 Kinetic 10 | . 10 . . Thermal 28 | . 15 . 13 Explosive . | . . . . Electromagnetic . | . . . . Robot Hit Streak 5 | . 4 . 5 Robot Miss Streak 4 | . 4 . 1 Penetration Max . | . . . . Secondary Targets . | . . . . Shots Hit Robots 25 | . 15 . 10 Core Hits 13 | . 8 . 5 Critical Kills . | . . . . Critical Parts Destroyed . | . . . . Critical Strikes 1 | . . . 1 Burn 1 | . . . 1 Melee Attacks . | . . . . Impact . | . . . . Slashing . | . . . . Piercing . | . . . . Sneak Attacks . | . . . . Combat Hostiles . | . . . . Follow-up Attacks . | . . . . Damage Inflicted 367 | . 141 . 226 Guns 204 | . 140 . 64 Cannons . | . . . . Explosions . | . . . . Melee . | . . . . Ramming 111 | . 1 . 110 Kinetic 44 | . 44 . . Thermal 212 | . 96 . 116 Explosive . | . . . . Electromagnetic . | . . . . Impact . | . . . . Slashing . | . . . . Piercing . | . . . . Highest Corruption 4 | . . . 4 Average Corruption 1 | . . . 1 Corruption Purged . | . . . . Corruption Blocked . | . . . . Effects 1 | . . . 1 Heat Flow Errors 1 | . . . 1 Overload Shots . | . . . . Overflow Damage . | . . . . Projectiles . | . . . . Explosions . | . . . . Melee . | . . . . Knockbacks 2 | . . . 2 Impact 2 | . . . 2 Kinetic . | . . . . Secondary . | . . . . Self-Inflicted Damage 47 | . . . 47 Shots . | . . . . Rammed 39 | . 1 . 38 Targets Rammed 39 | . 1 . 38 Kicked . | . . . . Crushed . | . . . . Highest Temperature 204 | . 6 . 204 Average Temperature 103 | . 6 . 111 Received Heat Transfer 348 | . 102 . 246 Siege Activations . | . . . . Robots Corrupted . | . . . . Combat Hostiles . | . . . . Parts Fried . | . . . . Impact Corruptions . | . . . . Robots Melted . | . . . . Combat Hostiles . | . . . . Parts Melted . | . . . . Heat Transferred 884 | . 225 . 659 Parts Sabotaged . | . . . . Parts Stolen . | . . . . Parts Stripped . | . . . . Power Chain Reactions . | . . . . Alert | -11 -10 -10 -9 ------- Run | Yrd Mat Min Mat Peak Influence 105 | . 105 30 31 Initial 11 | . . . 11 Average 7 | . 4 16 13 Maximum Alert Level . | . . . . Low Security (%) 100 | 100 100 100 100 Level 1 . | . . . . Level 2 . | . . . . Level 3 . | . . . . Level 4 . | . . . . Level 5 . | . . . . High Security . | . . . . Max Security . | . . . . Squads Dispatched 2 | . 1 . 1 Investigation . | . . . . Extermination . | . . . . Reinforcement 2 | . 1 . 1 Assault . | . . . . Garrison . | . . . . Intercept . | . . . . Searches Triggered . | . . . . Construction Impeded . | . . . . Haulers Reinforced . | . . . . Active Scanning Responses . | . . . . Cargo Convoy Interrupts . | . . . . Stealth | -11 -10 -10 -9 --------- Run | Yrd Mat Min Mat Distress Signals 2 | . 2 . . Communications Jammed . | . . . . Distress Signals . | . . . . Times Spotted 20 | . 13 2 5 Peak Tracking Total 6 | . 6 2 3 Tactical Retreats 1 | . . 1 . Traps | -11 -10 -10 -9 ------- Run | Yrd Mat Min Mat Traps Triggered . | . . . . Indirectly . | . . . . Trap Hack Attempts . | . . . . Triggered . | . . . . Disarmed . | . . . . Reprogrammed . | . . . . Reused . | . . . . Traps Extracted . | . . . . Installed . | . . . . Triggered . | . . . . Machines | -11 -10 -10 -9 ---------- Run | Yrd Mat Min Mat Machines Disabled . | . . . . Max in Single Turn . | . . . . Machines Repaired . | . . . . Machines Dismantled . | . . . . Machines Sabotaged . | . . . . Overloaded Fab Kills . | . . . . Hacking | -11 -10 -10 -9 --------- Run | Yrd Mat Min Mat Machines Accessed 1 | . 1 . . Terminals 1 | . 1 . . Fabricators . | . . . . Repair Stations . | . . . . Recycling Units . | . . . . Scanalyzers . | . . . . Garrison Access . | . . . . Total Hacks 4 | . 4 . . Successful 3 | . 3 . . Failed 1 | . 1 . . Catastrophic . | . . . . Database Lockouts . | . . . . Manual 4 | . 4 . . Terminals 4 | . 4 . . Fabricators . | . . . . Repair Stations . | . . . . Recycling Units . | . . . . Scanalyzers . | . . . . Garrison Access . | . . . . Terminal Hacks . | . . . . Fabricator Hacks . | . . . . Repair Station Hacks . | . . . . Recycling Unit Hacks . | . . . . Scanalyzer . | . . . . Garrison Access Hacks . | . . . . Unauthorized Hacks 3 | . 3 . . Terminals 3 | . 3 . . Track 1 | . 1 . . Botnet 1 | . 1 . . Operators 1 | . 1 . . Fabricators . | . . . . Repair Stations . | . . . . Recycling Units . | . . . . Scanalyzers . | . . . . Garrison Access . | . . . . Data Cores Recovered . | . . . . Used . | . . . . Hacking Detections . | . . . . Full Trace Events . | . . . . Feedback Events . | . . . . Feedback Blocked . | . . . . Robot Schematics Acquired . | . . . . Robots Built . | . . . . Authchips . | . . . . Time . | . . . . Total Robot Build Rating . | . . . . Part Schematics Acquired . | . . . . Parts Built . | . . . . Authchips . | . . . . Time . | . . . . Total Part Build Rating . | . . . . Parts Repaired . | . . . . Time . | . . . . Parts Recycled . | . . . . Recycled Matter . | . . . . Retrieved Matter . | . . . . Retrieved Components . | . . . . Parts Scanalyzed . | . . . . Part Schematics Acquired . | . . . . Parts Damaged . | . . . . Bothacking | -11 -10 -10 -9 ------------ Run | Yrd Mat Min Mat Used RIF Installer . | . . . . Robots Hacked . | . . . . Non-combat . | . . . . Combat . | . . . . Robot Hacks Applied . | . . . . Relay Couplers Released . | . . . . Fabnet Peak Effective % . | . . . . Robots Rewired . | . . . . Allies Hacked . | . . . . Hacks Repelled . | . . . . Allies | -11 -10 -10 -9 -------- Run | Yrd Mat Min Mat Total Allies . | . . . . Largest Group . | . . . . Highest-Rated Group . | . . . . Highest-Rated Ally . | . . . . Total Orders . | . . . . Ally Attacks . | . . . . Total Damage . | . . . . Kills . | . . . . Allies Corrupted . | . . . . Allies Melted . | . . . . Intel | -11 -10 -10 -9 ------- Run | Yrd Mat Min Mat Robot Analysis Total . | . . . . Derelict Logs Recovered 1 | . . 1 . Drone Launches . | . . . . Drone Recoveries . | . . . . Exploration | -11 -10 -10 -9 ------------- Run | Yrd Mat Min Mat Turns Passed 1310 | 40 860 121 289 Spaces Moved 465 | 42 96 233 94 Core 465 | 42 96 233 94 Treads . | . . . . Legs . | . . . . Wheels . | . . . . Hover . | . . . . Flight . | . . . . Fastest Speed 50 | 50 50 50 50 Average Speed 189 | 90 687 50 70 Slowest Speed 1450 | 100 1450 50 100 Overloaded Moves . | . . . . Propulsion Burnouts . | . . . . Robots Hopped . | . . . . Cave-ins Triggered . | . . . . Exploration Rate (%) 27 | 3 27 62 16 Regions Visited 3 Branch Regions 1 Pre-discovered Areas 1 | . . 1 . Known Exits Taken . | . . . . Unknown Exits Taken 3 | 1 1 1 . Scrap Searched 1 | . . 1 . Spaces Dug . | . . . . Terrain Destroyed . | . . . . Melee . | . . . . Projectile . | . . . . AOE . | . . . . Terrain Rammed . | . . . . Walls Destroyed . | . . . . Machines Disabled . | . . . . Actions | -11 -10 -10 -9 --------- Run | Yrd Mat Min Mat Total 836 | 43 259 235 299 Wait 287 | . 131 . 156 Move 462 | 41 95 232 94 Hop . | . . . . Pick Up 1 | . . 1 . Fast Attach 7 | 2 2 2 1 Attach 1 | . . . 1 Detach 4 | . 3 . 1 Swap 1 | . 1 . . Drop 1 | . 1 . . Fire 33 | . 25 . 8 Melee . | . . . . Ram 39 | . 1 . 38 Kick . | . . . . Crush . | . . . . Escape Stasis . | . . . . Rewire . | . . . . Trap . | . . . . Miscellaneous . | . . . . Route ------- -11/Scrapyard -10/Materials -10/Mines -9/Materials History --------- Turn | Location | Event 5 | -11/Scrapyard | Discovered new exit (range 16) 41 | -11/Scrapyard | Entered Materials 311 | -10/Materials | Build established: Mutant 800 | -10/Materials | Core integrity fell below 50% 896 | -10/Materials | Discovered new exit (range 10) 901 | -10/Materials | Entered Mines 951 | -10/Mines | Learned location of Storage (-8) 997 | -10/Mines | A weapon hastily lodged in a ceiling crevice suddenly fell to the ground 1006 | -10/Mines | Discovered new exit (range 9) 1022 | -10/Mines | Entered Materials 1022 | -9/Materials | Evolved 2 slots: Propulsion x1, Utility x1 1294 | -9/Materials | Core integrity fell below 50% 1306 | -9/Materials | Core integrity fell below 20% 1311 | -9/Materials | Destroyed by G-34 Mercenary with Small Laser Last Messages --------------- 01287_ Slammed into G-34 Mercenary. 01288_ G-34 Mercenary knocked back. 01289_ Slammed into G-34 Mercenary. 01292_ G-34 Mercenary knocked back. 01293_ Slammed into G-34 Mercenary. 01296_ Destabilizing: Core damaged (-20). 01297_ Slammed into G-34 Mercenary. 01297_ K-01 Serf collects debris. 01298_ Slammed into G-34 Mercenary. 01300_ K-01 Serf collects debris. 01301_ Slammed into G-34 Mercenary. 01302_ Destabilizing: System corrupted (+2). 01303_ Slammed into G-34 Mercenary. 01304_ K-01 Serf collects debris. 01305_ Slammed into G-34 Mercenary. 01306_ Destabilizing: System corrupted (+1). 01307_ Slammed into G-34 Mercenary. 01309_ System corrupted: Heat flow error (+156). 01309_ K-01 Serf collects debris. 01309_ Slammed into G-34 Mercenary. Map ----- +----------------------------------------------------+ | ?????????????????????????????????????????????? | | ?????????????????????????????????????????????? | | ?????????????????????????????????????????????? | | ?????????????????????????????????????????????? | | ?????????????????????????????????????????????? | | ?????????????????????????????????????????????? | | ?????????????????????????????????????????????? | | ?????????????????????????????????????????????? | | ?????????????? ????????????????????????????? | | ????????????? ????????????????????????????? | | ????????????? ???????????????????????????? | | ?????????????" ???????????????????????????? | | ????????????"" #???????????????????????????? | | ????????????"" #???????????????????????????? | | ???????! ??? +???????????????????????????? | | ??????? ? #???????????????????????????? | | ????????" """ #???????????????????????????? | | ????????? """ #???????????????????????????? | | ?????????? """ #???????????????????????????? | | ??????????? ##########??????????????????? | | ???????????? # #??????????????????? | | ?????????????# # %% ########???????????? | | ?????????????# # %%%+ ????? | | ?????????????# %# %%%########???????????? | | ?????????????#%%%+%%%g%%%%#??????????????????? | | ?????????????#%%%#%%% %%g@#??????????????????? | | ?????????????# # #??????????????????? | | ?????????????### # k #??????????????????? | | ???????????????# # #??????????????????? | | ???????????????# ##########??????????????????? | | ?????????####??# #???????????????????????????? | | ??#+######"T"### #???????????????????????????? | | ? #???????????????????????????? | | ? #???????????????????????????? | | ? #???????????????????????????? | | ? #???????????????????????????? | | ? """ "" #???????????????????????????? | | ?? """ "" ##??????????????????????????? | | ? """ " "#??????????????????????????? | | ? T#??????????????????????????? | | ? "#??????????????????????????? | | ? """ """ ##??????????????????????????? | | ?? """ """" #####???????????????????????? | | ?? """ """ #???????????????????????? | | ? #???????????????????????? | | ? #???????????????????????? | | ? #???????????????????????? | | ?? #???????????????????????? | | ??############### ###########??????????????? | | ??????########### # !! #??????????????? | +----------------------------------------------------+ Best States ------------- Heat Dissipation 28 Energy Generation 10 Energy Capacity 250 Matter Stores 300 Matter Capacity 300 Sight Range 16 Terrain Scan Density 10 Power Shielding 33 Evasion (%) 50 Item Schematics ----------------- None Robot Schematics ------------------ None Fabricated ------------ Nothing Alien Tech Used ----------------- None Achievements -------------- None Challenges ------------ None Game ------ Seed RefineryBombWartreads Manual? 0 Play Time 00:08:16 Cumulative 48.7 hours Start 2024.11.18 @ 18:29:34 End 2024.11.18 @ 18:35:54 Sessions 1 Manual Loads 0 Difficulty Rogue Special Mode None Game No. 90 Rogue 90 Adventurer 0 Explorer 0 Win Type - Total 0 Types 0/0/0/0/0/0/0/0/0 Lore% 15 Gallery% 34 Achievement% 32 Wizard Run 0 Options --------- Layout 0 ASCII 0 Keyboard 1 Movement Numpad Keybinds 0 Fullscreen 1 Font 18/SmallcapsGlow Map View 76x50 Zoom Use 0% Tactical HUD 1 Map Filters NONE Filters NONE Steam 1 RUN: f28c461e-a635-485c-b20b-c8c794a131b1